fUSD/lending_fUSD_20240422
["ID","MTS","AMOUNT","RATE_DAILY","PERIOD"]
[323222187,1713817980524,-788.48,0.00016438,2]
[323222188,1713817980534,-500.0,0.00016438,2]
[323222189,1713817980544,-1371.5,0.00016438,2]
[323222190,1713817980553,-500.0,0.00016438,2]
[323222191,1713817980562,-572.35,0.00016438,2]
[323222192,1713817980571,-500.0,0.00016438,2]
[323222193,1713817980582,-1080.61,0.00016438,2]
[323222194,1713817980591,-1639.44,0.00016438,2]
[323222195,1713817980601,-500.0,0.00016438,2]
[323222196,1713817980610,-927.48,0.00016438,2]
[323222197,1713817980619,-1053.33,0.00016438,2]
[323222198,1713817980629,-2417.44,0.00016438,2]
[323222199,1713817980640,-820.45,0.00016438,2]
[323222200,1713817980650,-500.0,0.00016438,2]
[323222201,1713817980661,-500.0,0.00016438,2]
[323222202,1713817980671,-616.6,0.00016438,2]
[323222203,1713817980680,-250.0,0.00016438,2]
[323222204,1713817980689,-250.45054718,0.00016438,2]
[323222205,1713817980698,-1496.35,0.00016438,2]
[323222206,1713817980708,-500.0,0.00016438,2]
[323222207,1713817980719,-1901.34,0.00016438,2]
[323222208,1713817980731,-1504.69,0.00016438,2]
[323222209,1713817980742,-531.85,0.00016438,2]
[323222210,1713817980752,-1164.49,0.00016438,2]
[323222211,1713817980763,-549.16,0.00016438,2]
[323222212,1713817980774,-1596.3,0.00016438,2]
[323222213,1713817980784,-1438.6,0.00016438,2]
[323222214,1713817980795,-1493.64,0.00016438,2]
[323222215,1713817980804,-500.0,0.00016438,2]
[323222216,1713817980814,-693.72,0.00016438,2]
[323222217,1713817980825,-500.0,0.00016438,2]
[323222218,1713817980836,-889.74,0.00016438,2]
[323222219,1713817980846,-1296.17,0.00016438,2]
[323222220,1713817980856,-1184.52,0.00016438,2]
[323222221,1713817980867,-1024.32,0.00016438,2]
[323222222,1713817980879,-1243.7,0.00016438,2]
[323222223,1713817980890,-675.02,0.00016438,2]
[323222224,1713817980899,-500.0,0.00016438,2]
[323222225,1713817980909,-2073.0,0.00016438,2]
[323222226,1713817980918,-1364.07,0.00016438,2]
[323222227,1713817980928,-500.0,0.00016438,2]
[323222228,1713817980939,-1245.39,0.00016438,2]
[323222229,1713817980949,-504.41109502,0.00016438,2]
[323222230,1713817980960,-785.15,0.00016438,2]
[323222231,1713817980970,-500.0,0.00016438,2]
[323222232,1713817980980,-1343.23,0.00016438,2]
[323222233,1713817980989,-1627.92,0.00016438,2]
[323222234,1713817981002,-1215.57,0.00016438,2]
[323222235,1713817981012,-1663.91,0.00016438,2]
[323222236,1713817981022,-500.0,0.00016438,2]
[323222237,1713817981031,-1013.21,0.00016438,2]
[323222238,1713817981041,-500.0,0.00016438,2]
[323222239,1713817981051,-1496.62,0.00016438,2]
[323222240,1713817981060,-781.7,0.00016438,2]
[323222241,1713817981070,-1208.61,0.00016438,2]
[323222242,1713817981080,-1291.68,0.00016438,2]
[323222243,1713817981090,-500.0,0.00016438,2]
[323222244,1713817981099,-1167.1,0.00016438,2]
[323222245,1713817981109,-636.48,0.00016438,2]
[323222246,1713817981118,-979.58,0.00016438,2]
[323222247,1713817981128,-751.72,0.00016438,2]
[323222248,1713817981138,-1192.84,0.00016438,2]
[323222249,1713817981147,-507.91,0.00016438,2]
[323222250,1713817981157,-1367.4,0.00016438,2]
[323222251,1713817981166,-525.05,0.00016438,2]
[323222252,1713817981176,-1037.47,0.00016438,2]
[323222253,1713817981186,-1643.75,0.00016438,2]
[323222254,1713817981196,-500.0,0.00016438,2]
[323222255,1713817981206,-535.15,0.00016438,2]
[323222256,1713817981215,-1478.09,0.00016438,2]
[323222257,1713817981226,-500.0,0.00016438,2]
[323222258,1713817981236,-504.89,0.00016438,2]
[323222259,1713817981245,-627.98,0.00016438,2]
[323222260,1713817981255,-1578.31,0.00016438,2]
[323222261,1713817981265,-849.45,0.00016438,2]
[323222262,1713817981275,-1198.94,0.00016438,2]
[323222263,1713817981284,-2383.31,0.00016438,2]
[323222264,1713817981294,-2746.92,0.00016438,2]
[323222265,1713817981304,-500.0,0.00016438,2]
[323222266,1713817981313,-1045.49,0.00016438,2]
[323222267,1713817981323,-500.0,0.00016438,2]
[323222268,1713817981333,-1276.4,0.00016438,2]
[323222269,1713817981343,-1445.62,0.00016438,2]
[323222270,1713817981352,-1072.72,0.00016438,2]
[323222271,1713817981363,-500.0,0.00016438,2]
[323222272,1713817981373,-500.0,0.00016438,2]
[323222273,1713817981382,-3284.68,0.00016438,2]
[323222274,1713817981391,-500.0,0.00016438,2]
[323222275,1713817981401,-2296.08,0.00016438,2]
[323222276,1713817981410,-851.02,0.00016438,2]
[323222277,1713817981420,-1106.72,0.00016438,2]
[323222278,1713817981430,-500.0,0.00016438,2]
[323222279,1713817981439,-788.12,0.00016438,2]
[323222280,1713817981449,-1533.64,0.00016438,2]
[323222281,1713817981459,-1657.26,0.00016438,2]
[323222282,1713817981469,-2404.29,0.00016438,2]
[323222283,1713817981478,-500.0,0.00016438,2]
[323222284,1713817981488,-2538.83,0.00016438,2]
[323222285,1713817981498,-500.0,0.00016438,2]
[323222286,1713817981508,-500.0,0.00016438,2]
[323222287,1713817981519,-552.91,0.00016438,2]
[323222288,1713817981529,-1596.02,0.00016438,2]
[323222289,1713817981539,-1577.46,0.00016438,2]
[323222290,1713817981550,-500.0,0.00016438,2]
[323222291,1713817981559,-1894.81,0.00016438,2]
[323222292,1713817981569,-2000.81,0.00016438,2]
[323222293,1713817981579,-1468.28,0.00016438,2]
[323222294,1713817981588,-595.04,0.00016438,2]
[323222295,1713817981597,-1219.08,0.00016438,2]
[323222296,1713817981607,-881.21,0.00016438,2]
[323222297,1713817981617,-2218.86,0.00016438,2]
[323222298,1713817981627,-533.19,0.00016438,2]
[323222299,1713817981638,-934.67,0.00016438,2]
[323222300,1713817981648,-525.62,0.00016438,2]
[323222301,1713817981658,-500.0,0.00016438,2]
[323222302,1713817981673,-702.91,0.00016438,2]
[323222303,1713817981684,-3676.74,0.00016438,2]
[323222304,1713817981694,-548.67,0.00016438,2]
[323222305,1713817981704,-500.0,0.00016438,2]
[323222306,1713817981714,-2497.52,0.00016438,2]
[323222307,1713817981726,-1527.36,0.00016438,2]
[323222308,1713817981739,-488.95101569,0.00016438,2]
[323222309,1713817981752,-1077.98,0.00016438,2]
[323222310,1713817981763,-1214.09,0.00016438,2]
[323222311,1713817981773,-960.51,0.00016438,2]
[323222312,1713817981784,-1969.14,0.00016438,2]
[323222313,1713817981794,-1099.35,0.00016438,2]
[323222314,1713817981805,-1706.31,0.00016438,2]
[323222315,1713817981816,-1214.51,0.00016438,2]
[323222316,1713817981827,-837.97,0.00016438,2]
[323222317,1713817981838,-500.0,0.00016438,2]
[323222318,1713817981848,-410.96537375,0.00016438,2]
[323222319,1713817981858,-1339.69,0.00016438,2]
[323222320,1713817981869,-2687.48,0.00016438,2]
[323222321,1713817981880,-1917.71,0.00016438,2]
[323222322,1713817981893,-500.0,0.00016438,2]
[323222323,1713817981904,-795.76,0.00016438,2]
[323222324,1713817981914,-500.0,0.00016438,2]
[323222325,1713817981925,-269.77936907,0.00016438,2]
[323222326,1713817981935,-1253.15,0.00016438,2]
[323222327,1713817981945,-1479.38,0.00016438,2]
[323222328,1713817981956,-755.1,0.00016438,2]
[323222329,1713817981967,-946.21,0.00016438,2]
[323222330,1713817981977,-500.0,0.00016438,2]
[323222331,1713817981987,-705.28,0.00016438,2]
[323222332,1713817981998,-856.04,0.00016438,2]
[323222333,1713817982008,-500.0,0.00016438,2]
[323222334,1713817982018,-1065.24,0.00016438,2]
[323222335,1713817982029,-1085.95,0.00016438,2]
[323222336,1713817982038,-586.95,0.00016438,2]
[323222337,1713817982049,-3909.96,0.00016438,2]
[323222338,1713817982059,-806.76,0.00016438,2]
[323222339,1713817982070,-1254.05,0.00016438,2]
[323222340,1713817982081,-956.54,0.00016438,2]
[323222341,1713817982092,-1335.71,0.00016438,2]
[323222342,1713817982102,-1092.89,0.00016438,2]
[323222343,1713817982112,-1318.24,0.00016438,2]
[323222344,1713817982123,-1047.55,0.00016438,2]
[323222345,1713817982134,-605.32,0.00016438,2]
[323222346,1713817982144,-330.43073656,0.00016438,2]
[323222347,1713817982155,-1295.55,0.00016438,2]
[323222348,1713817982165,-2415.41,0.00016438,2]
[323222349,1713817982176,-2338.02,0.00016438,2]
[323222350,1713817982186,-633.15,0.00016438,2]
[323222351,1713817982196,-630.63,0.00016438,2]
[323222352,1713817982207,-1073.37,0.00016438,2]
[323222353,1713817982218,-500.0,0.00016438,2]
[323222354,1713817982229,-723.42,0.00016438,2]
[323222355,1713817982240,-988.41,0.00016438,2]
[323222356,1713817982250,-1045.44,0.00016438,2]
[323222357,1713817982261,-2293.72,0.00016438,2]
[323222358,1713817982271,-1265.46,0.00016438,2]
[323222359,1713817982282,-561.76,0.00016438,2]
[323222360,1713817982293,-500.0,0.00016438,2]
[323222361,1713817982303,-648.54,0.00016438,2]
[323222362,1713817982314,-1423.76,0.00016438,2]
[323222363,1713817982324,-754.54,0.00016438,2]
[323222364,1713817982334,-766.12,0.00016438,2]
[323222365,1713817982343,-1066.26,0.00016438,2]
[323222366,1713817982353,-730.36,0.00016438,2]
[323222367,1713817982363,-630.54,0.00016438,2]
[323222368,1713817982373,-1476.18,0.00016438,2]
[323222369,1713817982383,-1555.08,0.00016438,2]
[323222370,1713817982393,-1064.89,0.00016438,2]
[323222371,1713817982403,-1952.11,0.00016438,2]
[323222372,1713817982414,-909.66,0.00016438,2]
[323222373,1713817982424,-503.36692324,0.00016438,2]
[323222374,1713817982740,-500.0,0.00016438,2]
[323222375,1713817982751,-801.08,0.00016438,2]
[323222376,1713817982760,-2542.4,0.00016438,2]
[323222377,1713817982770,-1323.06,0.00016438,2]
[323222378,1713817982779,-580.66,0.00016438,2]
[323222379,1713817982789,-1009.86,0.00016438,2]
[323222380,1713817982800,-996.9,0.00016438,2]
[323222381,1713817982809,-751.49,0.00016438,2]
[323222382,1713817982819,-685.24,0.00016438,2]
[323222383,1713817982828,-1254.19,0.00016438,2]
[323222384,1713817982838,-860.39,0.00016438,2]
[323222385,1713817982848,-4409.84,0.00016438,2]
[323222386,1713817982858,-513.13,0.00016438,2]
[323222387,1713817982867,-605.11,0.00016438,2]
[323222388,1713817982877,-1437.23,0.00016438,2]
[323222389,1713817982888,-1024.83,0.00016438,2]
[323222390,1713817982898,-794.18,0.00016438,2]
[323222391,1713817982907,-1182.95,0.00016438,2]
[323222392,1713817982917,-1314.8,0.00016438,2]
[323222393,1713817982926,-500.0,0.00016438,2]
[323222394,1713817982936,-1869.66,0.00016438,2]
[323222395,1713817982945,-983.81,0.00016438,2]
[323222396,1713817982956,-914.73,0.00016438,2]
[323222397,1713817982968,-876.01,0.00016438,2]
[323222398,1713817982978,-500.0,0.00016438,2]
[323222399,1713817982987,-878.84,0.00016438,2]
[323222400,1713817982998,-541.31,0.00016438,2]
[323222401,1713817983009,-894.0,0.00016438,2]
[323222402,1713817983018,-2061.61,0.00016438,2]
[323222403,1713817983028,-1124.13,0.00016438,2]
[323222404,1713817983039,-1403.67,0.00016438,2]
[323222405,1713817983050,-1325.09,0.00016438,2]
[323222406,1713817983059,-775.89,0.00016438,2]
[323222407,1713817983069,-1211.22,0.00016438,2]
[323222408,1713817983079,-1196.82,0.00016438,2]
[323222409,1713817983089,-1451.51,0.00016438,2]
[323222410,1713817983100,-1680.65,0.00016438,2]
[323222411,1713817983110,-1636.05,0.00016438,2]
[323222412,1713817983120,-922.47,0.00016438,2]
[323222413,1713817983130,-500.0,0.00016438,2]
[323222414,1713817983140,-725.28,0.00016438,2]
[323222415,1713817983150,-816.4,0.00016438,2]
[323222416,1713817983160,-500.0,0.00016438,2]
[323222417,1713817983170,-526.67,0.00016438,2]
[323222418,1713817983180,-500.0,0.00016438,2]
[323222419,1713817983189,-754.42,0.00016438,2]
[323222420,1713817983199,-1131.8,0.00016438,2]
[323222421,1713817983209,-1402.5,0.00016438,2]
[323222422,1713817983219,-500.0,0.00016438,2]
[323222423,1713817983228,-532.25,0.00016438,2]
[323222424,1713817983238,-787.9,0.00016438,2]
[323222425,1713817983248,-559.84,0.00016438,2]
[323222426,1713817983258,-1069.11,0.00016438,2]
[323222427,1713817983268,-1256.58,0.00016438,2]
[323222428,1713817983278,-628.34,0.00016438,2]
[323222429,1713817983288,-500.0,0.00016438,2]
[323222430,1713817983300,-624.97,0.00016438,2]
[323222431,1713817983309,-500.0,0.00016438,2]
[323222432,1713817983320,-1806.23,0.00016438,2]
[323222433,1713817983331,-1450.35,0.00016438,2]
[323222434,1713817983341,-1359.54,0.00016438,2]
[323222435,1713817983351,-500.0,0.00016438,2]
[323222436,1713817983361,-502.81,0.00016438,2]
[323222437,1713817983373,-1191.78,0.00016438,2]
[323222438,1713817983383,-888.12,0.00016438,2]
[323222439,1713817983394,-578.9,0.00016438,2]
[323222440,1713817983403,-1855.61,0.00016438,2]
[323222441,1713817983413,-583.38,0.00016438,2]
[323222442,1713817983423,-500.0,0.00016438,2]
[323222443,1713817983432,-1313.44,0.00016438,2]
[323222444,1713817983442,-1448.43,0.00016438,2]
[323222445,1713817983452,-500.0,0.00016438,2]
[323222446,1713817983462,-500.0,0.00016438,2]
[323222447,1713817983473,-500.0,0.00016438,2]
[323222448,1713817983484,-1028.72,0.00016438,2]
[323222449,1713817983494,-595.0,0.00016438,2]
[323222450,1713817983504,-547.89,0.00016438,2]
[323222451,1713817983513,-500.0,0.00016438,2]
[323222452,1713817983524,-1641.26,0.00016438,2]
[323222453,1713817983533,-1768.32,0.00016438,2]
[323222454,1713817983544,-500.0,0.00016438,2]
[323222455,1713817983555,-3339.2,0.00016438,2]
[323222456,1713817983564,-668.1,0.00016438,2]
[323222457,1713817983575,-863.77,0.00016438,2]
[323222458,1713817983584,-500.0,0.00016438,2]
[323222459,1713817983594,-1124.07,0.00016438,2]
[323222460,1713817983603,-557.13,0.00016438,2]
[323222461,1713817983613,-500.0,0.00016438,2]
[323222462,1713817983624,-562.12,0.00016438,2]
[323222463,1713817983635,-840.96,0.00016438,2]
[323222464,1713817983645,-816.6,0.00016438,2]
[323222465,1713817983655,-500.0,0.00016438,2]
[323222466,1713817983666,-383.8174859,0.00016438,2]
[323222467,1713817983677,-811.15,0.00016438,2]
[323222468,1713817983688,-1876.65,0.00016438,2]
[323222469,1713817983698,-1275.39,0.00016438,2]
[323222470,1713817983709,-500.0,0.00016438,2]
[323222471,1713817983719,-1190.54,0.00016438,2]
[323222472,1713817983729,-1082.13,0.00016438,2]
[323222473,1713817983740,-1247.63,0.00016438,2]
[323222474,1713817983750,-754.66,0.00016438,2]
[323222475,1713817983760,-2584.59,0.00016438,2]
[323222476,1713817983770,-3329.52,0.00016438,2]
[323222477,1713817983779,-1169.33,0.00016438,2]
[323222478,1713817983791,-500.0,0.00016438,2]
[323222479,1713817983802,-621.96,0.00016438,2]
[323222480,1713817983811,-500.0,0.00016438,2]
[323222481,1713817983822,-845.41,0.00016438,2]
[323222482,1713817983832,-755.77,0.00016438,2]
[323222483,1713817983841,-973.92,0.00016438,2]
[323222484,1713817983851,-1019.33,0.00016438,2]
[323222485,1713817983863,-549.92,0.00016438,2]
[323222486,1713817983872,-500.0,0.00016438,2]
[323222487,1713817983886,-500.0,0.00016438,2]
[323222488,1713817983896,-1233.41,0.00016438,2]
[323222489,1713817983906,-524.29,0.00016438,2]
[323222490,1713817983915,-730.26,0.00016438,2]
[323222491,1713817983925,-1250.58,0.00016438,2]
[323222492,1713817983934,-500.0,0.00016438,2]
[323222493,1713817983943,-2886.05,0.00016438,2]
[323222494,1713817983954,-590.06,0.00016438,2]
[323222495,1713817983963,-500.0,0.00016438,2]
[323222496,1713817983972,-1827.41,0.00016438,2]
[323222497,1713817983981,-744.02,0.00016438,2]
[323222498,1713817983991,-1751.5,0.00016438,2]
[323222499,1713817984001,-500.0,0.00016438,2]
[323222500,1713817984010,-1503.69,0.00016438,2]
[323222501,1713817984020,-500.0,0.00016438,2]
[323222502,1713817984030,-1054.98,0.00016438,2]
[323222503,1713817984039,-500.0,0.00016438,2]
[323222504,1713817984049,-527.77,0.00016438,2]
[323222505,1713817984059,-1757.63,0.00016438,2]
[323222506,1713817984068,-1390.28,0.00016438,2]
[323222507,1713817984079,-543.73,0.00016438,2]
[323222508,1713817984090,-800.72,0.00016438,2]
[323222509,1713817984099,-560.39,0.00016438,2]
[323222510,1713817984110,-710.37,0.00016438,2]
[323222511,1713817984120,-8671.29,0.00016438,2]
[323222512,1713817984132,-2737.44,0.00016438,2]
[323222513,1713817984142,-991.82,0.00016438,2]
[323222514,1713817984152,-500.0,0.00016438,2]
[323222515,1713817984162,-1220.79,0.00016438,2]
[323222516,1713817984171,-500.0,0.00016438,2]
[323222517,1713817984182,-3731.89,0.00016438,2]
[323222518,1713817984192,-4012.68,0.00016438,2]
[323222519,1713817984201,-1170.18,0.00016438,2]
[323222520,1713817984211,-1044.89,0.00016438,2]
[323222521,1713817984220,-292.59340923,0.00016438,2]
[323222522,1713817984230,-1190.98,0.00016438,2]
[323222523,1713817984239,-773.35,0.00016438,2]
[323222524,1713817984250,-12096.17,0.00016438,2]
[323222525,1713817984259,-1727.84,0.00016438,2]
[323222526,1713817984268,-508.4,0.00016438,2]
[323222527,1713817984278,-938.55,0.00016438,2]
[323222528,1713817984287,-1147.24,0.00016438,2]
[323222529,1713817984297,-20433.91,0.00016438,2]
[323222530,1713817984306,-1529.34,0.00016438,2]
[323222531,1713817984315,-4437.11,0.00016438,2]
[323222532,1713817984325,-3682.04,0.00016438,2]
[323222533,1713817984337,-4397.02,0.00016438,2]
[323222534,1713817984346,-1045.51,0.00016438,2]
[323222535,1713817984355,-502.61,0.00016438,2]
[323222536,1713817984364,-2939.82,0.00016438,2]
[323222537,1713817984374,-4066.35,0.00016438,2]
[323222538,1713817984385,-500.0,0.00016438,2]
[323222539,1713817984395,-9104.68,0.00016438,2]
[323222540,1713817984405,-2694.54,0.00016438,2]
[323222541,1713817984415,-606.84,0.00016438,2]
[323222542,1713817984424,-675.73,0.00016438,2]
[323222543,1713817984434,-13312.5,0.00016438,2]
[323222544,1713817984443,-1227.83,0.00016438,2]
[323222545,1713817984452,-590.54748435,0.00016438,2]
[323222546,1713817984461,-4924.18,0.00016438,2]
[323222547,1713817984471,-843.14,0.00016438,2]
[323222548,1713817984480,-500.0,0.00016438,2]
[323222549,1713817984489,-752.32,0.00016438,2]
[323222550,1713817984498,-2295.67,0.00016438,2]
[323222551,1713817984507,-1329.4,0.00016438,2]
[323222552,1713817984517,-19623.04,0.00016438,2]
[323222553,1713817984526,-500.0,0.00016438,2]
[323222554,1713817984536,-696.75,0.00016438,2]
[323222555,1713817984545,-4571.21,0.00016438,2]
[323222556,1713817984554,-1065.73,0.00016438,2]
[323222557,1713817984563,-8822.49,0.00016438,2]
[323222558,1713817984573,-4272.21,0.00016438,2]
[323222559,1713817984582,-2754.05,0.00016438,2]
[323222560,1713817984593,-2238.45,0.00016438,2]
[323222561,1713817984603,-500.0,0.00016438,2]
[323222562,1713817984612,-1968.05,0.00016438,2]
[323222563,1713817984621,-17508.63,0.00016438,2]
[323222564,1713817984631,-5023.5,0.00016438,2]
[323222565,1713817984640,-975.21,0.00016438,2]
[323222566,1713817984649,-5213.97,0.00016438,2]
[323222567,1713817984659,-1827.86,0.00016438,2]
[323222568,1713817984669,-5798.87,0.00016438,2]
[323222569,1713817984678,-4518.5,0.00016438,2]
[323222570,1713817984689,-3464.58,0.00016438,2]
[323222571,1713817984698,-1356.45,0.00016438,2]
[323222572,1713817984708,-533.11,0.00016438,2]
[323222573,1713817984717,-7647.7,0.00016438,2]
[323222574,1713817984727,-980.74,0.00016438,2]
[323222575,1713817984736,-500.0,0.00016438,2]
[323222576,1713817984746,-866.39,0.00016438,2]
[323222577,1713817984756,-6333.04,0.00016438,2]
[323222578,1713817984766,-1130.77,0.00016438,2]
[323222579,1713817984776,-1424.13,0.00016438,2]
[323222580,1713817984786,-1043.08,0.00016438,2]
[323222581,1713817984797,-500.0,0.00016438,2]
[323222582,1713817984807,-4957.21,0.00016438,2]
[323222583,1713817984817,-972.86,0.00016438,2]
[323222584,1713817984826,-17087.41,0.00016438,2]
[323222585,1713817984835,-1902.61,0.00016438,2]
[323222586,1713817984845,-2426.59,0.00016438,2]
[323222587,1713817984855,-4288.29,0.00016438,2]
[323222588,1713817984865,-1173.49,0.00016438,2]
[323222589,1713817984875,-8918.06,0.00016438,2]
[323222590,1713817984885,-8646.75,0.00016438,2]
[323222591,1713817984895,-500.0,0.00016438,2]
[323222592,1713817984905,-663.73,0.00016438,2]
[323222593,1713817984914,-5848.77,0.00016438,2]
[323222594,1713817984926,-500.0,0.00016438,2]
[323222595,1713817984936,-14690.22,0.00016438,2]
[323222596,1713817984946,-1312.73,0.00016438,2]
[323222597,1713817984955,-506.74,0.00016438,2]
[323222598,1713817984969,-2234.61,0.00016438,2]
[323222599,1713817984980,-648.66,0.00016438,2]
[323222600,1713817984990,-10938.94,0.00016438,2]
[323222601,1713817985001,-500.0,0.00016438,2]
[323222602,1713817985010,-1962.25,0.00016438,2]
[323222603,1713817985020,-2886.61,0.00016438,2]
[323222604,1713817985030,-579.41,0.00016438,2]
[323222605,1713817985042,-1997.87,0.00016438,2]
[323222606,1713817985054,-500.0,0.00016438,2]
[323222607,1713817985065,-53885.3,0.00016438,2]
[323222608,1713817985076,-1244.34,0.00016438,2]
[323222609,1713817985087,-4051.64,0.00016438,2]
[323222610,1713817985096,-1590.37,0.00016438,2]
[323222611,1713817985106,-7669.72,0.00016438,2]
[323222612,1713817985253,-2236.17,0.00016438,2]
[323222613,1713817985263,-2521.35,0.00016438,2]
[323222614,1713817985273,-1645.21,0.00016438,2]
[323222615,1713817985282,-1510.42,0.00016438,2]
[323222616,1713817985291,-1343.13,0.00016438,2]
[323222617,1713817985303,-1028.46,0.00016438,2]
[323222618,1713817985313,-5067.75,0.00016438,2]
[323222619,1713817985323,-803.65,0.00016438,2]
[323222620,1713817985333,-1544.16,0.00016438,2]
[323222621,1713817985343,-754.93,0.00016438,2]
[323222622,1713817985353,-26471.53,0.00016438,2]
[323222623,1713817985362,-1051.95,0.00016438,2]
[323222624,1713817985371,-1582.45,0.00016438,2]
[323222625,1713817985381,-11812.41,0.00016438,2]
[323222626,1713817985390,-1393.84,0.00016438,2]
[323222627,1713817985399,-807.31,0.00016438,2]
[323222628,1713817985408,-500.0,0.00016438,2]
[323222629,1713817985418,-1564.41,0.00016438,2]
[323222630,1713817985427,-3864.45,0.00016438,2]
[323222631,1713817985437,-3718.52,0.00016438,2]
[323222632,1713817985446,-500.0,0.00016438,2]
[323222633,1713817985455,-5811.41,0.00016438,2]
[323222634,1713817985465,-500.0,0.00016438,2]
[323222635,1713817985474,-6037.29,0.00016438,2]
[323222636,1713817985483,-1502.85,0.00016438,2]
[323222637,1713817985493,-2889.09,0.00016438,2]
[323222638,1713817985502,-6389.88,0.00016438,2]
[323222639,1713817985513,-669.89,0.00016438,2]
[323222640,1713817985523,-500.0,0.00016438,2]
[323222641,1713817985532,-500.0,0.00016438,2]
[323222642,1713817985542,-1991.04,0.00016438,2]
[323222643,1713817985552,-5057.75,0.00016438,2]
[323222644,1713817985562,-2149.82,0.00016438,2]
[323222645,1713817985571,-610.24,0.00016438,2]
[323222646,1713817985581,-2535.93,0.00016438,2]
[323222647,1713817985590,-2095.61,0.00016438,2]
[323222648,1713817985599,-500.0,0.00016438,2]
[323222649,1713817985609,-500.0,0.00016438,2]
[323222650,1713817985618,-558.4,0.00016438,2]
[323222651,1713817985629,-9434.59,0.00016438,2]
[323222652,1713817985638,-1851.7,0.00016438,2]
[323222653,1713817985648,-6735.46,0.00016438,2]
[323222654,1713817985657,-1148.52,0.00016438,2]
[323222655,1713817985666,-2751.02,0.00016438,2]
[323222656,1713817985676,-500.0,0.00016438,2]
[323222657,1713817985686,-2872.2,0.00016438,2]
[323222658,1713817985695,-560.07,0.00016438,2]
[323222659,1713817985705,-2848.87,0.00016438,2]
[323222660,1713817985715,-500.0,0.00016438,2]
[323222661,1713817985724,-4572.48,0.00016438,2]
[323222662,1713817985734,-12108.08,0.00016438,2]
[323222663,1713817985743,-4162.92,0.00016438,2]
[323222664,1713817985753,-2605.69,0.00016438,2]
[323222665,1713817985763,-505.78,0.00016438,2]
[323222666,1713817985773,-462.8232984,0.00016438,2]
[323222667,1713817985783,-1139.18,0.00016438,2]
[323222668,1713817985792,-4970.85,0.00016438,2]
[323222669,1713817985803,-5993.52,0.00016438,2]
[323222670,1713817985812,-4558.05,0.00016438,2]
[323222671,1713817985821,-2320.73,0.00016438,2]
[323222672,1713817985831,-38504.87,0.00016438,2]
[323222673,1713817985840,-2509.82,0.00016438,2]
[323222674,1713817985851,-4258.45,0.00016438,2]
[323222675,1713817985861,-782.97,0.00016438,2]
[323222676,1713817985870,-1377.87,0.00016438,2]
[323222677,1713817985881,-500.0,0.00016438,2]
[323222678,1713817985893,-2445.43,0.00016438,2]
[323222679,1713817985903,-844.44,0.00016438,2]
[323222680,1713817985914,-4269.95,0.00016438,2]
[323222681,1713817985923,-1194.19,0.00016438,2]
[323222682,1713817985934,-1360.06,0.00016438,2]
[323222683,1713817985943,-535.38,0.00016438,2]
[323222684,1713817985953,-1464.57,0.00016438,2]
[323222685,1713817985963,-519.11,0.00016438,2]
[323222686,1713817985973,-2389.58,0.00016438,2]